[Event "Early-Titled-Tuesday-Blitz-October-03-2023"]
[Site "Chess.com"]
[Date "2023.10.03"]
[Round "5"]
[White "NowInChess"]
[Black "Magila31"]
[Result "0-1"]
[WhiteElo "2246"]
[BlackElo "2409"]
[TimeControl "180+1"]
[EndTime "8:56:40 PDT"]
[Termination "Magila31 won by checkmate"]

1. e4 {[%clk 0:03:00.9]} 1... g6 {[%clk 0:02:58.4]} 2. d4 {[%clk 0:02:56.3]}
2... Bg7 {[%clk 0:02:58.5]} 3. Nf3 {[%clk 0:02:56.7]} 3... d6 {[%clk 0:02:58.7]}
4. Bc4 {[%clk 0:02:57]} 4... a6 {[%clk 0:02:58]} 5. a4 {[%clk 0:02:56.4]} 5...
e6 {[%clk 0:02:57.2]} 6. Nc3 {[%clk 0:02:55.4]} 6... Ne7 {[%clk 0:02:53.7]} 7.
O-O {[%clk 0:02:55.1]} 7... Nd7 {[%clk 0:02:51.1]} 8. Re1 {[%clk 0:02:54.9]}
8... O-O {[%clk 0:02:49.5]} 9. h3 {[%clk 0:02:48.4]} 9... b6 {[%clk 0:02:49.1]}
10. Qe2 {[%clk 0:02:41.9]} 10... Bb7 {[%clk 0:02:48.3]} 11. Bg5 {[%clk
0:02:37.4]} 11... h6 {[%clk 0:02:47.2]} 12. Bh4 {[%clk 0:02:34.8]} 12... g5
{[%clk 0:02:39.9]} 13. Bg3 {[%clk 0:02:31.6]} 13... Ng6 {[%clk 0:02:39]} 14.
Rad1 {[%clk 0:02:16]} 14... Nf6 {[%clk 0:02:31.8]} 15. e5 {[%clk 0:02:00.7]}
15... Nh5 {[%clk 0:02:31.4]} 16. Bh2 {[%clk 0:01:41.9]} 16... Nhf4 {[%clk
0:02:30.5]} 17. Qe3 {[%clk 0:01:31.3]} 17... d5 {[%clk 0:02:12.5]} 18. Bf1
{[%clk 0:01:25.7]} 18... Rc8 {[%clk 0:02:07.4]} 19. g3 {[%clk 0:01:19.3]} 19...
Nh5 {[%clk 0:02:01.5]} 20. Ne2 {[%clk 0:01:12]} 20... c5 {[%clk 0:01:58.5]} 21.
c3 {[%clk 0:01:10.3]} 21... cxd4 {[%clk 0:01:57.6]} 22. Nexd4 {[%clk 0:01:06.1]}
22... Bh8 {[%clk 0:01:38]} 23. Bd3 {[%clk 0:00:55.5]} 23... Qd7 {[%clk
0:01:28.7]} 24. Ne2 {[%clk 0:00:48.4]} 24... Ng7 {[%clk 0:01:25.9]} 25. Qxb6
{[%clk 0:00:40]} 25... Rb8 {[%clk 0:01:21.8]} 26. Qe3 {[%clk 0:00:32]} 26...
Qxa4 {[%clk 0:01:20.3]} 27. Ra1 {[%clk 0:00:26.9]} 27... Qd7 {[%clk 0:01:16.7]}
28. Bxa6 {[%clk 0:00:24.8]} 28... Bxa6 {[%clk 0:01:16.3]} 29. Rxa6 {[%clk
0:00:25.7]} 29... Rxb2 {[%clk 0:01:16]} 30. Ra7 {[%clk 0:00:25.3]} 30... Qc8
{[%clk 0:01:05.4]} 31. Rea1 {[%clk 0:00:21.8]} 31... Nf5 {[%clk 0:01:04.5]} 32.
Qc1 {[%clk 0:00:14]} 32... Rxe2 {[%clk 0:01:03.4]} 33. Qa3 {[%clk 0:00:11.7]}
33... Nxe5 {[%clk 0:00:56.6]} 34. Nxe5 {[%clk 0:00:09.2]} 34... Bxe5 {[%clk
0:00:56.7]} 35. Qxf8+ {[%clk 0:00:07.6]} 35... Qxf8 {[%clk 0:00:56.6]} 36. Ra8
{[%clk 0:00:08.2]} 36... Qxa8 {[%clk 0:00:54.4]} 37. Rxa8+ {[%clk 0:00:09.1]}
37... Kg7 {[%clk 0:00:52]} 38. Kf1 {[%clk 0:00:09.2]} 38... Rc2 {[%clk
0:00:51.2]} 39. g4 {[%clk 0:00:09.8]} 39... Bxh2 {[%clk 0:00:49.9]} 40. gxf5
{[%clk 0:00:10.2]} 40... exf5 {[%clk 0:00:50.1]} 41. Rd8 {[%clk 0:00:10.4]}
41... Rxc3 {[%clk 0:00:45.8]} 42. Rxd5 {[%clk 0:00:11]} 42... Rxh3 {[%clk
0:00:44.2]} 43. Kg2 {[%clk 0:00:10.3]} 43... Rh4 {[%clk 0:00:44.2]} 44. Rxf5
{[%clk 0:00:09.6]} 44... Bf4 {[%clk 0:00:43.7]} 45. Rb5 {[%clk 0:00:08.2]} 45...
Kg6 {[%clk 0:00:43.4]} 46. Rb6+ {[%clk 0:00:07.7]} 46... f6 {[%clk 0:00:43.5]}
47. Rb5 {[%clk 0:00:08.6]} 47... Rh2+ {[%clk 0:00:43.2]} 48. Kg1 {[%clk
0:00:08.5]} 48... Rh3 {[%clk 0:00:42.5]} 49. Kg2 {[%clk 0:00:08.8]} 49... Ra3
{[%clk 0:00:41.8]} 50. Rd5 {[%clk 0:00:07.8]} 50... h5 {[%clk 0:00:41.9]} 51.
Rb5 {[%clk 0:00:07.7]} 51... h4 {[%clk 0:00:42.1]} 52. Rb1 {[%clk 0:00:05.8]}
52... h3+ {[%clk 0:00:42.2]} 53. Kh1 {[%clk 0:00:06.4]} 53... Kh5 {[%clk
0:00:41.6]} 54. Rd1 {[%clk 0:00:05.1]} 54... Kg4 {[%clk 0:00:36.4]} 55. Rg1+
{[%clk 0:00:04.3]} 55... Kf3 {[%clk 0:00:35.6]} 56. Rd1 {[%clk 0:00:03.5]} 56...
f5 {[%clk 0:00:33.3]} 57. Rb1 {[%clk 0:00:03.1]} 57... g4 {[%clk 0:00:32.5]} 58.
Rf1 {[%clk 0:00:02.6]} 58... Ra2 {[%clk 0:00:29]} 59. Rb1 {[%clk 0:00:02.4]}
59... Rxf2 {[%clk 0:00:25.9]} 60. Rb3+ {[%clk 0:00:03]} 60... Be3 {[%clk
0:00:25.9]} 61. Rb1 {[%clk 0:00:03.7]} 61... g3 {[%clk 0:00:23.6]} 62. Re1
{[%clk 0:00:02]} 62... Rh2# {[%clk 0:00:23.2]} 0-1

[Event "Early-Titled-Tuesday-Blitz-October-03-2023"]
[Site "Chess.com"]
[Date "2023.10.03"]
[Round "5"]
[White "Tssunami"]
[Black "ChesscularGodofchess"]
[Result "1-0"]
[WhiteElo "2399"]
[BlackElo "2184"]
[TimeControl "180+1"]
[EndTime "8:56:42 PDT"]
[Termination "Tssunami won by checkmate"]

1. e4 {[%clk 0:03:00.9]} 1... c5 {[%clk 0:03:00]} 2. Nf3 {[%clk 0:02:52.4]} 2...
e6 {[%clk 0:03:00.3]} 3. a3 {[%clk 0:02:48.3]} 3... Nc6 {[%clk 0:02:58.3]} 4.
Bb5 {[%clk 0:02:47.5]} 4... Nge7 {[%clk 0:02:51.3]} 5. O-O {[%clk 0:02:45.6]}
5... a6 {[%clk 0:02:51.2]} 6. Bxc6 {[%clk 0:02:40.7]} 6... Nxc6 {[%clk
0:02:52.1]} 7. b4 {[%clk 0:02:37.5]} 7... cxb4 {[%clk 0:02:51.7]} 8. d4 {[%clk
0:02:38]} 8... d5 {[%clk 0:02:43.3]} 9. Re1 {[%clk 0:02:26.2]} 9... dxe4 {[%clk
0:02:41.5]} 10. Rxe4 {[%clk 0:02:25.8]} 10... Be7 {[%clk 0:02:37.1]} 11. axb4
{[%clk 0:02:23.4]} 11... Nxb4 {[%clk 0:02:36.8]} 12. c4 {[%clk 0:02:20]} 12...
O-O {[%clk 0:02:35.3]} 13. Bb2 {[%clk 0:02:19.9]} 13... Bf6 {[%clk 0:02:34]} 14.
Ba3 {[%clk 0:02:15.7]} 14... Be7 {[%clk 0:02:29.3]} 15. Nc3 {[%clk 0:02:08.1]}
15... Bd7 {[%clk 0:02:23.1]} 16. d5 {[%clk 0:02:03.7]} 16... Re8 {[%clk
0:02:14.4]} 17. d6 {[%clk 0:02:01.2]} 17... Bc6 {[%clk 0:02:07.2]} 18. Bxb4
{[%clk 0:01:56.1]} 18... Bf6 {[%clk 0:01:58.7]} 19. Re3 {[%clk 0:01:50.1]} 19...
b5 {[%clk 0:01:57.2]} 20. cxb5 {[%clk 0:01:44.2]} 20... axb5 {[%clk 0:01:58.1]}
21. Rxa8 {[%clk 0:01:43.5]} 21... Qxa8 {[%clk 0:01:59]} 22. Rd3 {[%clk
0:01:18.6]} 22... Rd8 {[%clk 0:01:55.9]} 23. d7 {[%clk 0:01:06.7]} 23... g6
{[%clk 0:01:50.2]} 24. h3 {[%clk 0:01:05.5]} 24... Qb7 {[%clk 0:01:44.1]} 25.
Ba5 {[%clk 0:01:04.6]} 25... Rxd7 {[%clk 0:01:43.9]} 26. Rxd7 {[%clk 0:01:04.1]}
26... Qxd7 {[%clk 0:01:44.3]} 27. Qxd7 {[%clk 0:01:03.5]} 27... Bxd7 {[%clk
0:01:45.2]} 28. Bb4 {[%clk 0:01:03.4]} 28... Bc6 {[%clk 0:01:44.8]} 29. Nd2
{[%clk 0:01:03.2]} 29... Bd4 {[%clk 0:01:38.4]} 30. Nce4 {[%clk 0:01:01.5]}
30... f6 {[%clk 0:01:32.7]} 31. Bc3 {[%clk 0:00:58.3]} 31... Bxc3 {[%clk
0:01:29.2]} 32. Nxc3 {[%clk 0:00:58.1]} 32... Kf7 {[%clk 0:01:29.8]} 33. Na2
{[%clk 0:00:55.2]} 33... Bd5 {[%clk 0:01:25]} 34. Nb4 {[%clk 0:00:55]} 34... Bb7
{[%clk 0:01:24.5]} 35. Nb3 {[%clk 0:00:51.9]} 35... Be4 {[%clk 0:01:24.5]} 36.
Nc5 {[%clk 0:00:51.3]} 36... Bb1 {[%clk 0:01:11.5]} 37. Kf1 {[%clk 0:00:50.8]}
37... Ke7 {[%clk 0:01:11.3]} 38. Ke2 {[%clk 0:00:51.3]} 38... Kd6 {[%clk
0:01:07.8]} 39. Nb3 {[%clk 0:00:51.1]} 39... Be4 {[%clk 0:01:00.3]} 40. f3
{[%clk 0:00:50.7]} 40... Bb7 {[%clk 0:00:55.9]} 41. Ke3 {[%clk 0:00:49.9]} 41...
h5 {[%clk 0:00:55]} 42. Nd3 {[%clk 0:00:43]} 42... h4 {[%clk 0:00:49.7]} 43. Nd4
{[%clk 0:00:37.5]} 43... Bc6 {[%clk 0:00:31.3]} 44. Nxc6 {[%clk 0:00:24]} 44...
Kxc6 {[%clk 0:00:31.4]} 45. Nf4 {[%clk 0:00:23.8]} 45... g5 {[%clk 0:00:30.4]}
46. Nxe6 {[%clk 0:00:23.4]} 46... b4 {[%clk 0:00:30.5]} 47. Kd4 {[%clk
0:00:20.4]} 47... b3 {[%clk 0:00:24.6]} 48. Kc3 {[%clk 0:00:19.6]} 48... Kd5
{[%clk 0:00:23]} 49. Ng7 {[%clk 0:00:19.5]} 49... Ke5 {[%clk 0:00:21.9]} 50. Nh5
{[%clk 0:00:16.4]} 50... f5 {[%clk 0:00:18.3]} 51. Kxb3 {[%clk 0:00:16.2]} 51...
Kd4 {[%clk 0:00:18.8]} 52. Ng7 {[%clk 0:00:15.4]} 52... f4 {[%clk 0:00:16.5]}
53. Ne6+ {[%clk 0:00:15.6]} 53... Ke3 {[%clk 0:00:16.4]} 54. Nxg5 {[%clk
0:00:16.3]} 54... Kf2 {[%clk 0:00:16.6]} 55. Kc3 {[%clk 0:00:16.5]} 55... Kxg2
{[%clk 0:00:16.6]} 56. Kd4 {[%clk 0:00:17.2]} 56... Kg3 {[%clk 0:00:16.5]} 57.
Ke4 {[%clk 0:00:17.5]} 57... Kf2 {[%clk 0:00:15.8]} 58. Kxf4 {[%clk 0:00:18.1]}
58... Kg2 {[%clk 0:00:16]} 59. Kg4 {[%clk 0:00:18.5]} 59... Kh2 {[%clk
0:00:16.9]} 60. f4 {[%clk 0:00:18.9]} 60... Kg2 {[%clk 0:00:17.8]} 61. f5 {[%clk
0:00:19.8]} 61... Kh2 {[%clk 0:00:18.7]} 62. f6 {[%clk 0:00:20.7]} 62... Kg2
{[%clk 0:00:19.6]} 63. f7 {[%clk 0:00:21.6]} 63... Kh2 {[%clk 0:00:20.5]} 64.
f8=Q {[%clk 0:00:21.8]} 64... Kg2 {[%clk 0:00:21.4]} 65. Kxh4 {[%clk 0:00:20.6]}
65... Kg1 {[%clk 0:00:22.3]} 66. Kg4 {[%clk 0:00:20.8]} 66... Kg2 {[%clk
0:00:22.7]} 67. h4 {[%clk 0:00:21.4]} 67... Kg1 {[%clk 0:00:23.5]} 68. h5 {[%clk
0:00:22.2]} 68... Kg2 {[%clk 0:00:24.4]} 69. h6 {[%clk 0:00:23.1]} 69... Kg1
{[%clk 0:00:25.3]} 70. h7 {[%clk 0:00:24]} 70... Kg2 {[%clk 0:00:26.2]} 71. h8=Q
{[%clk 0:00:24.5]} 71... Kg1 {[%clk 0:00:27.1]} 72. Qh4 {[%clk 0:00:24.6]} 72...
Kg2 {[%clk 0:00:27.4]} 73. Qg3+ {[%clk 0:00:25.2]} 73... Kh1 {[%clk 0:00:27.4]}
74. Qh8# {[%clk 0:00:26.1]} 1-0

[Event "Early-Titled-Tuesday-Blitz-October-03-2023"]
[Site "Chess.com"]
[Date "2023.10.03"]
[Round "5"]
[White "JiaHaoxiang"]
[Black "MatthewG-p4p"]
[Result "0-1"]
[WhiteElo "2618"]
[BlackElo "2834"]
[TimeControl "180+1"]
[EndTime "8:56:45 PDT"]
[Termination "MatthewG-p4p won by resignation"]

1. d4 {[%clk 0:00:17.1]} 1... Nf6 {[%clk 0:02:57.1]} 2. c4 {[%clk 0:00:17]} 2...
c5 {[%clk 0:02:57.7]} 3. d5 {[%clk 0:00:16.8]} 3... e6 {[%clk 0:02:58.3]} 4. Nc3
{[%clk 0:00:16.3]} 4... exd5 {[%clk 0:02:58.2]} 5. cxd5 {[%clk 0:00:17.2]} 5...
d6 {[%clk 0:02:58.2]} 6. Nf3 {[%clk 0:00:17.9]} 6... g6 {[%clk 0:02:57.7]} 7.
Bg5 {[%clk 0:00:18.6]} 7... Bg7 {[%clk 0:02:57.8]} 8. e3 {[%clk 0:00:19.3]} 8...
h6 {[%clk 0:02:57.9]} 9. Bh4 {[%clk 0:00:19.4]} 9... O-O {[%clk 0:02:58.6]} 10.
Be2 {[%clk 0:00:19.4]} 10... Na6 {[%clk 0:02:58.5]} 11. Nd2 {[%clk 0:00:18.8]}
11... Nc7 {[%clk 0:02:58.9]} 12. O-O {[%clk 0:00:17.3]} 12... Rb8 {[%clk
0:02:57.6]} 13. a4 {[%clk 0:00:17.9]} 13... b6 {[%clk 0:02:57.1]} 14. Nc4 {[%clk
0:00:17.7]} 14... Re8 {[%clk 0:02:54.8]} 15. Bg3 {[%clk 0:00:17.9]} 15... Bf8
{[%clk 0:02:52]} 16. Qc2 {[%clk 0:00:16.8]} 16... a6 {[%clk 0:02:48]} 17. Rfd1
{[%clk 0:00:16.6]} 17... Bf5 {[%clk 0:02:37.1]} 18. Bd3 {[%clk 0:00:16.2]} 18...
Bxd3 {[%clk 0:02:37]} 19. Qxd3 {[%clk 0:00:17.1]} 19... Nh5 {[%clk 0:02:31]} 20.
Na3 {[%clk 0:00:15.7]} 20... Bg7 {[%clk 0:02:25.7]} 21. Rab1 {[%clk 0:00:15.8]}
21... Nxg3 {[%clk 0:01:59.4]} 22. hxg3 {[%clk 0:00:15.7]} 22... Qf6 {[%clk
0:01:59.3]} 23. Ne2 {[%clk 0:00:15.1]} 23... b5 {[%clk 0:01:57.2]} 24. axb5
{[%clk 0:00:14.9]} 24... axb5 {[%clk 0:01:57.8]} 25. b3 {[%clk 0:00:15]} 25...
Qe5 {[%clk 0:01:53.2]} 26. Nf4 {[%clk 0:00:15]} 26... Qe4 {[%clk 0:01:51.4]} 27.
Qxe4 {[%clk 0:00:14.8]} 27... Rxe4 {[%clk 0:01:52.3]} 28. Nc2 {[%clk 0:00:15.2]}
28... b4 {[%clk 0:01:47.6]} 29. f3 {[%clk 0:00:15.7]} 29... Ree8 {[%clk
0:01:46.8]} 30. e4 {[%clk 0:00:16.2]} 30... Nb5 {[%clk 0:01:47.2]} 31. Rbc1
{[%clk 0:00:15.9]} 31... Nc3 {[%clk 0:01:46.1]} 32. Rd2 {[%clk 0:00:16.4]} 32...
Ra8 {[%clk 0:01:42.8]} 33. Ne3 {[%clk 0:00:16.7]} 33... Bd4 {[%clk 0:01:40.2]}
34. Kf2 {[%clk 0:00:16.6]} 34... Ra3 {[%clk 0:01:29.5]} 35. Ne2 {[%clk
0:00:15.9]} 35... Nxe2 {[%clk 0:00:51.3]} 36. Kxe2 {[%clk 0:00:16.8]} 36... Rxb3
{[%clk 0:00:35.8]} 37. Nc4 {[%clk 0:00:16.7]} 37... Rd8 {[%clk 0:00:36.2]} 38.
Ra2 {[%clk 0:00:16]} 38... Bg7 {[%clk 0:00:23.1]} 39. Ra6 {[%clk 0:00:15.4]}
39... Bf8 {[%clk 0:00:19.8]} 40. Kd2 {[%clk 0:00:15.9]} 40... h5 {[%clk
0:00:16.1]} 41. g4 {[%clk 0:00:15.9]} 41... Bh6+ {[%clk 0:00:15.6]} 42. g5
{[%clk 0:00:15.1]} 42... Bxg5+ {[%clk 0:00:15.9]} 43. Kd1 {[%clk 0:00:14.8]}
43... Bxc1 {[%clk 0:00:16.1]} 44. Nxd6 {[%clk 0:00:15.3]} 44... Bf4 {[%clk
0:00:14.2]} 45. Nb7 {[%clk 0:00:15.5]} 45... Rc8 {[%clk 0:00:11.4]} 46. d6
{[%clk 0:00:15]} 46... c4 {[%clk 0:00:10.6]} 47. Ke2 {[%clk 0:00:14.3]} 47...
Rd3 {[%clk 0:00:10.6]} 48. Rb6 {[%clk 0:00:11.2]} 48... b3 {[%clk 0:00:10.4]}
49. Rb5 {[%clk 0:00:11.3]} 49... Rd2+ {[%clk 0:00:09.8]} 50. Ke1 {[%clk
0:00:11.7]} 50... b2 {[%clk 0:00:09]} 51. g3 {[%clk 0:00:12]} 51... Be3 {[%clk
0:00:06.2]} 52. d7 {[%clk 0:00:10.3]} 52... Rxd7 {[%clk 0:00:07.1]} 53. Rxb2
{[%clk 0:00:10.5]} 53... c3 {[%clk 0:00:07.8]} 54. Rb3 {[%clk 0:00:10.5]} 54...
c2 {[%clk 0:00:07.9]} 55. Rxe3 {[%clk 0:00:10.2]} 55... c1=Q+ {[%clk 0:00:08.1]}
56. Kf2 {[%clk 0:00:11]} 56... Rd2+ {[%clk 0:00:06.5]} 0-1

[Event "Early-Titled-Tuesday-Blitz-October-03-2023"]
[Site "Chess.com"]
[Date "2023.10.03"]
[Round "5"]
[White "MatyChess1"]
[Black "hellokostya"]
[Result "1-0"]
[WhiteElo "2742"]
[BlackElo "2548"]
[TimeControl "180+1"]
[EndTime "8:56:45 PDT"]
[Termination "MatyChess1 won by checkmate"]

1. d4 {[%clk 0:03:00.9]} 1... Nf6 {[%clk 0:02:59.3]} 2. Bf4 {[%clk 0:03:01.4]}
2... g6 {[%clk 0:02:59.4]} 3. e3 {[%clk 0:03:02]} 3... Bg7 {[%clk 0:02:59.6]} 4.
Nf3 {[%clk 0:03:02.5]} 4... d6 {[%clk 0:02:59.9]} 5. h3 {[%clk 0:03:02.8]} 5...
O-O {[%clk 0:03:00.4]} 6. Be2 {[%clk 0:03:03.5]} 6... Nc6 {[%clk 0:03:00]} 7.
O-O {[%clk 0:03:03.9]} 7... e5 {[%clk 0:02:58.9]} 8. dxe5 {[%clk 0:03:03]} 8...
Ne4 {[%clk 0:02:58.7]} 9. Nbd2 {[%clk 0:00:36.3]} 9... dxe5 {[%clk 0:02:56]} 10.
Bh2 {[%clk 0:00:32.8]} 10... Nd6 {[%clk 0:02:55.2]} 11. c3 {[%clk 0:00:27.8]}
11... Qe7 {[%clk 0:02:54.4]} 12. Nc4 {[%clk 0:00:26.4]} 12... Rd8 {[%clk
0:02:51.9]} 13. Nxd6 {[%clk 0:00:26]} 13... cxd6 {[%clk 0:02:49.7]} 14. e4
{[%clk 0:00:23.7]} 14... Be6 {[%clk 0:02:47.7]} 15. Bg3 {[%clk 0:00:23.7]} 15...
Qc7 {[%clk 0:02:41.9]} 16. Ng5 {[%clk 0:00:22]} 16... Qe7 {[%clk 0:02:23.4]} 17.
Nxe6 {[%clk 0:00:21.2]} 17... Qxe6 {[%clk 0:02:24.3]} 18. Qb3 {[%clk 0:00:21.4]}
18... Qe7 {[%clk 0:02:03]} 19. Rfd1 {[%clk 0:00:20.6]} 19... Bf6 {[%clk
0:02:00.4]} 20. a4 {[%clk 0:00:19.3]} 20... Na5 {[%clk 0:01:58.3]} 21. Qb5
{[%clk 0:00:17.5]} 21... b6 {[%clk 0:01:58.5]} 22. b4 {[%clk 0:00:16.2]} 22...
Nb7 {[%clk 0:01:55.8]} 23. Bc4 {[%clk 0:00:16.7]} 23... Qc7 {[%clk 0:01:52.8]}
24. Bd5 {[%clk 0:00:15.4]} 24... a6 {[%clk 0:01:51.1]} 25. Qd3 {[%clk
0:00:13.2]} 25... Rac8 {[%clk 0:01:48.8]} 26. Rac1 {[%clk 0:00:12.9]} 26... a5
{[%clk 0:01:45.7]} 27. h4 {[%clk 0:00:12.9]} 27... axb4 {[%clk 0:01:42.6]} 28.
cxb4 {[%clk 0:00:13.8]} 28... Qxc1 {[%clk 0:01:42.8]} 29. Rxc1 {[%clk
0:00:14.7]} 29... Rxc1+ {[%clk 0:01:43]} 30. Kh2 {[%clk 0:00:15.6]} 30... Rc7
{[%clk 0:01:41.3]} 31. Qb5 {[%clk 0:00:14.5]} 31... Rb8 {[%clk 0:01:36.4]} 32.
Qxb6 {[%clk 0:00:14.7]} 32... Bd8 {[%clk 0:01:37.2]} 33. a5 {[%clk 0:00:11.4]}
33... Rcc8 {[%clk 0:01:21.6]} 34. Qa6 {[%clk 0:00:06.2]} 34... Rc7 {[%clk
0:01:22]} 35. Kh3 {[%clk 0:00:05]} 35... h5 {[%clk 0:01:20.9]} 36. Qb5 {[%clk
0:00:04.6]} 36... Rcc8 {[%clk 0:01:19]} 37. Qa6 {[%clk 0:00:05.2]} 37... Rc7
{[%clk 0:01:19.2]} 38. Qe2 {[%clk 0:00:05.9]} 38... Be7 {[%clk 0:01:15.6]} 39.
Qf3 {[%clk 0:00:05.5]} 39... Bf8 {[%clk 0:01:14.4]} 40. Qd3 {[%clk 0:00:02.6]}
40... Nd8 {[%clk 0:01:14.2]} 41. Qb3 {[%clk 0:00:02.5]} 41... Kg7 {[%clk
0:01:10.7]} 42. f3 {[%clk 0:00:02.9]} 42... Nc6 {[%clk 0:01:08.6]} 43. Bf2
{[%clk 0:00:02.8]} 43... Nxa5 {[%clk 0:01:08.2]} 44. bxa5 {[%clk 0:00:01.8]}
44... Rxb3 {[%clk 0:01:07.8]} 45. Bxb3 {[%clk 0:00:02.7]} 45... Rc3 {[%clk
0:01:06.5]} 46. Bd5 {[%clk 0:00:02.7]} 46... Ra3 {[%clk 0:01:03.7]} 47. Bb6
{[%clk 0:00:03.3]} 47... f5 {[%clk 0:00:59.5]} 48. Bb7 {[%clk 0:00:03.6]} 48...
Rb3 {[%clk 0:00:54.3]} 49. Kh2 {[%clk 0:00:02.7]} 49... Be7 {[%clk 0:00:52.5]}
50. Bd5 {[%clk 0:00:02.7]} 50... Kf6 {[%clk 0:00:48.3]} 51. Bxb3 {[%clk
0:00:02.5]} 51... d5 {[%clk 0:00:27.7]} 52. Bxd5 {[%clk 0:00:02.7]} 52... Bd6
{[%clk 0:00:28.6]} 53. a6 {[%clk 0:00:03.1]} 53... fxe4 {[%clk 0:00:29.5]} 54.
Bxe4 {[%clk 0:00:02.8]} 54... Bb8 {[%clk 0:00:29.7]} 55. a7 {[%clk 0:00:03.7]}
55... Bxa7 {[%clk 0:00:30.5]} 56. Bxa7 {[%clk 0:00:04.3]} 56... g5 {[%clk
0:00:31.2]} 57. Bb6 {[%clk 0:00:05.1]} 57... gxh4 {[%clk 0:00:31.7]} 58. Kh3
{[%clk 0:00:05.6]} 58... Kg5 {[%clk 0:00:32.6]} 59. Be3+ {[%clk 0:00:05.9]}
59... Kf6 {[%clk 0:00:32.9]} 60. Kxh4 {[%clk 0:00:06.8]} 60... Ke6 {[%clk
0:00:33.8]} 61. Kxh5 {[%clk 0:00:07.3]} 61... Kf6 {[%clk 0:00:34.7]} 62. Kh6
{[%clk 0:00:07.6]} 62... Kf7 {[%clk 0:00:34.9]} 63. Kg5 {[%clk 0:00:08.5]} 63...
Kf8 {[%clk 0:00:35.8]} 64. Kf5 {[%clk 0:00:09.1]} 64... Kg8 {[%clk 0:00:36.7]}
65. Kxe5 {[%clk 0:00:10]} 65... Kh8 {[%clk 0:00:37.6]} 66. g4 {[%clk 0:00:10.8]}
66... Kg7 {[%clk 0:00:38.5]} 67. f4 {[%clk 0:00:11.7]} 67... Kf8 {[%clk
0:00:39.4]} 68. Kf5 {[%clk 0:00:12.5]} 68... Ke8 {[%clk 0:00:40.3]} 69. Kg5
{[%clk 0:00:13.3]} 69... Kf8 {[%clk 0:00:41.2]} 70. Kg6 {[%clk 0:00:14.1]} 70...
Kg8 {[%clk 0:00:42.1]} 71. Bd4 {[%clk 0:00:14.4]} 71... Kf8 {[%clk 0:00:43]} 72.
Bd5 {[%clk 0:00:14.9]} 72... Ke7 {[%clk 0:00:43.4]} 73. Be5 {[%clk 0:00:15.8]}
73... Kf8 {[%clk 0:00:44.3]} 74. f5 {[%clk 0:00:16.6]} 74... Ke8 {[%clk
0:00:45.2]} 75. Kf6 {[%clk 0:00:16.9]} 75... Kf8 {[%clk 0:00:46.1]} 76. g5
{[%clk 0:00:17.6]} 76... Ke8 {[%clk 0:00:45.2]} 77. g6 {[%clk 0:00:18.3]} 77...
Kf8 {[%clk 0:00:46.1]} 78. g7+ {[%clk 0:00:18.7]} 78... Ke8 {[%clk 0:00:47]} 79.
g8=Q+ {[%clk 0:00:19.4]} 79... Kd7 {[%clk 0:00:47.2]} 80. Qf7+ {[%clk
0:00:20.1]} 80... Kd8 {[%clk 0:00:47.4]} 81. Qc7+ {[%clk 0:00:18.9]} 81... Ke8
{[%clk 0:00:47.8]} 82. Qf7+ {[%clk 0:00:19.1]} 82... Kd8 {[%clk 0:00:48.1]} 83.
Qc7+ {[%clk 0:00:17.8]} 83... Ke8 {[%clk 0:00:49]} 84. Bc6+ {[%clk 0:00:18.3]}
84... Kf8 {[%clk 0:00:49.4]} 85. Qf7# {[%clk 0:00:18.9]} 1-0